Cogmind - Beta 11.1 @@@ ROGUE MODE // 2022.12.14 @ 11:13:25 Player: L1l7 Result: Self-destructed Performance ------------- Evolutions (1) 500 Regions Visited (3) 600 Robots Destroyed (13) 65 Value Destroyed (176) 176 Prototype IDs (0) 0 Alien Tech Used (0) 0 Bonus (0) 0 TOTAL SCORE: 1341 Bonus ------- None Cogmind --------- Core Integrity 32/400 Matter 300/300 Energy 100/100 System Corruption 2% Temperature Cool (0) Movement Core (50) Location -9/Mines Parts ------- > --- POWER (1) -------- (None) > --- PROPULSION (2) --- (None) > --- UTILITY (4) ------ Seismic Detector > --- WEAPON (2) ------- Medium Laser > --- INVENTORY (5) ---- Light Ion Engine Light Ion Engine Improved Heat Sink Medium Storage Unit Hammer Peak State ------------ > --- POWER ------------ Light Ion Engine > --- PROPULSION ------- Wheel Compact Wheel > --- UTILITY ---------- Small Storage Unit Seismic Detector > --- WEAPON ----------- Beam Cannon Assault Rifle > --- INVENTORY -------- Light Ion Engine Improved Heat Sink Seismic Detector Medium Laser Particle Gun Light Assault Rifle Hammer [Rating: 8] Favorites ----------- Power Improved Ion Engine Engine Improved Ion Engine Propulsion Wheel Wheel Wheel Utility Seismic Detector Device Seismic Detector Storage Medium Storage Unit Weapon Light Assault Rifle Energy Gun Medium Laser Energy Cannon Beam Cannon Ballistic Gun Light Assault Rifle Build | -11 -10 -9 -9 ------- Run | Scr Mat Mat Min Slots Evolved 2 | . . 2 . Power . | . . . . Propulsion . | . . . . Utility 2 | . . 2 . Weapon . | . . . . Parts Attached 19 | 8 4 7 . Power 2 | 1 . 1 . Engine 2 | 1 . 1 . Core . | . . . . Reactor . | . . . . Propulsion 6 | 3 1 2 . Treads . | . . . . Leg . | . . . . Wheel 6 | 3 1 2 . Hover . | . . . . Flight . | . . . . Utility 5 | 2 1 2 . Device 2 | 1 . 1 . Storage 3 | 1 1 1 . Processor . | . . . . Hackware . | . . . . Protection . | . . . . Artifact . | . . . . Weapon 6 | 2 2 2 . Energy Gun 2 | . 1 1 . Energy Cannon 1 | . 1 . . Ballistic Gun 3 | 2 . 1 . Ballistic Cannon . | . . . . Launcher . | . . . . Special Weapon . | . . . . Impact Weapon . | . . . . Slashing Weapon . | . . . . Piercing Weapon . | . . . . Special Melee Weapon . | . . . . Unidentified Prototypes . | . . . . Parts Lost 7 | . 5 . 2 Power 1 | . 1 . . Propulsion 3 | . 2 . 1 Utility . | . . . . Weapon 3 | . 2 . 1 Highest Loss Streak 5 | . 5 . 2 To Critical Strikes . | . . . . Average Slot Usage (%) 63 | . 77 54 58 Engine 9 | . 8 10 7 Wheel 15 | . 18 13 14 Device 9 | . 13 6 11 Storage 11 | . 14 11 7 Energy Gun 5 | . 3 5 11 Energy Cannon 1 | . 3 . . Ballistic Gun 10 | . 14 8 7 Naked Turns . | . . . . Heaviest Build 21 | 12 19 21 21 Greatest Support 26 | 26 26 20 20 Greatest Overweight (x) 5 | . 4 5 2 Average Overweight (x) . | . . 1 . Largest Inventory Capacity 10 | 8 10 10 10 Average Capacity 9 | 7 8 9 8 Most Carried 8 | 5 8 8 7 Average Carried 5 | 2 5 5 6 Final Capacity 10 | 8 10 10 5 Final Carried 7 | 3 7 7 5 Class Distribution -------------------- 100% | Mutant Dominant Class ---------------- Mutant | -10/Materials Mutant | -9/Materials Mutant | -9/Mines Resources | -11 -10 -9 -9 ----------- Run | Scr Mat Mat Min Matter Collected 434 | 214 121 97 2 Remotely . | . . . . Salvage Created 412 | 27 196 173 16 Parts 26 | 4 14 6 2 Haulers Intercepted 1 | . . 1 . Recyclers Shooed 2 | . 1 1 . Parts Field Recycled . | . . . . Retrieved Matter . | . . . . Parts Self-Destructed . | . . . . Prevented . | . . . . Kills | -11 -10 -9 -9 ------- Run | Scr Mat Mat Min Combat Hostiles Destroyed 6 | . 6 . . Guns 5 | . 5 . . Cannons 1 | . 1 . . Classes Destroyed 6 | 1 3 2 . Worker 2 | . 1 1 . Tunneler 3 | 2 . . 1 Hauler 1 | . . 1 . Recycler 1 | . . 1 . Swarmer 3 | . 3 . . Grunt 3 | . 3 . . Best Kill Streak 5 | 2 5 1 1 Combat Bots Only 4 | . 4 . . Max Kills in Single Turn 2 | 1 2 1 1 Gunslinging . | . . . . Exploded . | . . . . Melee . | . . . . Uniques/NPCs Destroyed . | . . . . Combat | -11 -10 -9 -9 -------- Run | Scr Mat Mat Min Damage Taken 1386 | . 744 72 570 Core 568 | . 200 14 354 Absorbed by Shields . | . . . . Core Remaining (%) 60 | 100 20 . . Volleys Fired 55 | 6 31 16 2 Largest 2 | 2 2 2 2 Hottest 80 | 40 80 70 70 Shots Fired 73 | 12 36 21 4 Gun 68 | 12 31 21 4 Cannon 5 | . 5 . . Launcher . | . . . . Special . | . . . . Kinetic 39 | 12 9 16 2 Thermal 34 | . 27 5 2 Explosive . | . . . . Electromagnetic . | . . . . Robot Hit Streak 8 | 2 6 7 8 Robot Miss Streak 2 | 2 2 2 2 Penetration Max . | . . . . Secondary Targets . | . . . . Shots Hit Robots 48 | 6 25 16 1 Core Hits 21 | 2 11 6 2 Critical Kills . | . . . . Critical Parts Destroyed . | . . . . Critical Strikes 1 | . 1 . . Burn 1 | . 1 . . Melee Attacks . | . . . . Impact . | . . . . Slashing . | . . . . Piercing . | . . . . Sneak Attacks . | . . . . Combat Hostiles . | . . . . Follow-up Attacks . | . . . . Damage Inflicted 703 | 73 441 154 35 Guns 609 | 73 370 154 12 Cannons 71 | . 71 . . Explosions . | . . . . Melee . | . . . . Ramming 23 | . . . 23 Kinetic 260 | 73 96 91 . Thermal 420 | . 345 63 12 Explosive . | . . . . Electromagnetic . | . . . . Impact . | . . . . Slashing . | . . . . Piercing . | . . . . Highest Corruption 2 | . . . 2 Average Corruption 2 | . . . 2 Corruption Purged . | . . . . Corruption Blocked . | . . . . Overload Shots . | . . . . Overflow Damage . | . . . . Projectiles . | . . . . Explosions . | . . . . Melee . | . . . . Knockbacks . | . . . . Impact . | . . . . Kinetic . | . . . . Secondary . | . . . . Self-Inflicted Damage 11 | . . . 11 Shots . | . . . . Rammed 4 | . . . 4 Targets Rammed 4 | . . . 4 Kicked . | . . . . Crushed . | . . . . Highest Temperature 281 | . 281 56 26 Average Temperature 91 | . 109 21 14 Received Heat Transfer 378 | . 240 18 120 Siege Activations . | . . . . Robots Corrupted . | . . . . Combat Hostiles . | . . . . Parts Fried . | . . . . Impact Corruptions . | . . . . Robots Melted . | . . . . Combat Hostiles . | . . . . Parts Melted 2 | . 1 1 . Heat Transferred 1110 | . 888 185 37 Parts Sabotaged . | . . . . Parts Stolen . | . . . . Parts Stripped . | . . . . Power Chain Reactions . | . . . . Missiles Intercepted . | . . . . Alert | -11 -10 -9 -9 ------- Run | Scr Mat Mat Min Peak Influence 131 | 10 131 87 16 Initial 55 | . 6 55 11 Average 47 | 4 54 61 8 Maximum Alert Level . | . . . . Low Security (%) 100 | 100 100 100 100 Level 1 . | . . . . Level 2 . | . . . . Level 3 . | . . . . Level 4 . | . . . . Level 5 . | . . . . High Security . | . . . . Max Security . | . . . . Squads Dispatched . | . . . . Investigation . | . . . . Extermination . | . . . . Reinforcement . | . . . . Assault . | . . . . Garrison . | . . . . Intercept . | . . . . Searches Triggered . | . . . . Construction Impeded . | . . . . Haulers Reinforced . | . . . . Active Scanning Responses . | . . . . Cargo Convoy Interrupts . | . . . . Stealth | -11 -10 -9 -9 --------- Run | Scr Mat Mat Min Distress Signals 2 | . 2 . . Communications Jammed . | . . . . Distress Signals . | . . . . Times Spotted 28 | . 11 6 11 Peak Tracking Total 12 | . 8 5 12 Tactical Retreats 2 | . . . 2 Traps | -11 -10 -9 -9 ------- Run | Scr Mat Mat Min Traps Triggered 3 | . 3 . . Indirectly . | . . . . Trap Hack Attempts . | . . . . Triggered . | . . . . Disarmed . | . . . . Reprogrammed . | . . . . Reused . | . . . . Traps Extracted . | . . . . Installed . | . . . . Triggered . | . . . . Machines | -11 -10 -9 -9 ---------- Run | Scr Mat Mat Min Machines Disabled . | . . . . Max in Single Turn . | . . . . Machines Sabotaged . | . . . . Garrisons Compromised . | . . . . Overloaded Fab Kills . | . . . . Hacking | -11 -10 -9 -9 --------- Run | Scr Mat Mat Min Machines Accessed 1 | . . 1 . Terminals 1 | . . 1 . Fabricators . | . . . . Repair Stations . | . . . . Recycling Units . | . . . . Scanalyzers . | . . . . Garrison Access . | . . . . Total Hacks 2 | . . 2 . Successful . | . . . . Failed 2 | . . 2 . Catastrophic . | . . . . Database Lockouts . | . . . . Manual . | . . . . Terminals 2 | . . 2 . Fabricators . | . . . . Repair Stations . | . . . . Recycling Units . | . . . . Scanalyzers . | . . . . Garrison Access . | . . . . Terminal Hacks . | . . . . Fabricator Hacks . | . . . . Repair Station Hacks . | . . . . Recycling Unit Hacks . | . . . . Scanalyzer . | . . . . Garrison Access Hacks . | . . . . Unauthorized Hacks . | . . . . Terminals . | . . . . Fabricators . | . . . . Repair Stations . | . . . . Recycling Units . | . . . . Scanalyzers . | . . . . Garrison Access . | . . . . Data Cores Recovered . | . . . . Used . | . . . . Hacking Detections 1 | . . 1 . Full Trace Events . | . . . . Feedback Events . | . . . . Feedback Blocked . | . . . . Robot Schematics Acquired . | . . . . Robots Built . | . . . . Authchips . | . . . . Time . | . . . . Total Robot Build Rating . | . . . . Part Schematics Acquired . | . . . . Parts Built . | . . . . Authchips . | . . . . Time . | . . . . Total Part Build Rating . | . . . . Parts Repaired . | . . . . Time . | . . . . Parts Recycled . | . . . . Recycled Matter . | . . . . Retrieved Matter . | . . . . Retrieved Components . | . . . . Parts Scanalyzed . | . . . . Part Schematics Acquired . | . . . . Parts Damaged . | . . . . Bothacking | -11 -10 -9 -9 ------------ Run | Scr Mat Mat Min Used RIF Installer . | . . . . Robots Hacked . | . . . . Non-combat . | . . . . Combat . | . . . . Robot Hacks Applied . | . . . . Relay Couplers Released . | . . . . Fabnet Peak Effective % . | . . . . Robots Rewired . | . . . . Allies Hacked . | . . . . Hacks Repelled . | . . . . Allies | -11 -10 -9 -9 -------- Run | Scr Mat Mat Min Total Allies . | . . . . Largest Group . | . . . . Highest-Rated Group . | . . . . Highest-Rated Ally . | . . . . Total Orders . | . . . . Ally Attacks . | . . . . Total Damage . | . . . . Kills . | . . . . Allies Corrupted . | . . . . Allies Melted . | . . . . Intel | -11 -10 -9 -9 ------- Run | Scr Mat Mat Min Robot Analysis Total . | . . . . Derelict Logs Recovered . | . . . . Drone Launches . | . . . . Drone Recoveries . | . . . . Exploration | -11 -10 -9 -9 ------------- Run | Scr Mat Mat Min Turns Passed 1009 | 111 326 460 112 Spaces Moved 645 | 87 193 231 134 Core 157 | 9 31 57 60 Treads . | . . . . Legs . | . . . . Wheels 488 | 78 162 174 74 Hover . | . . . . Flight . | . . . . Fastest Speed 50 | 50 90 80 50 Average Speed 109 | 85 113 135 74 Slowest Speed 300 | 90 250 300 110 Overloaded Moves . | . . . . Propulsion Burnouts . | . . . . Robots Hopped . | . . . . Cave-ins Triggered . | . . . . Exploration Rate (%) 18 | 4 32 15 22 Regions Visited 3 Branch Regions 1 Pre-discovered Areas 1 | . . . 1 Known Exits Taken . | . . . . Unknown Exits Taken 3 | 1 1 1 . Scrap Searched 1 | . . . 1 Spaces Dug . | . . . . Terrain Destroyed . | . . . . Melee . | . . . . Projectile . | . . . . AOE . | . . . . Terrain Rammed . | . . . . Walls Destroyed . | . . . . Machines Disabled . | . . . . Actions | -11 -10 -9 -9 --------- Run | Scr Mat Mat Min Total 883 | 112 268 360 143 Wait 119 | . 24 95 . Move 642 | 86 192 230 134 Hop . | . . . . Pick Up 33 | 11 12 10 . Fast Attach . | . . . . Attach 19 | 8 4 7 . Detach 1 | . 1 . . Swap . | . . . . Drop 10 | 1 4 2 3 Fire 55 | 6 31 16 2 Melee . | . . . . Ram 4 | . . . 4 Kick . | . . . . Crush . | . . . . Escape Stasis . | . . . . Rewire . | . . . . Trap . | . . . . Miscellaneous . | . . . . Route ------- -11/Scrapyard -10/Materials (discovered 2 exits: *Mat / [*Min]) -9/Materials -9/Mines History --------- Turn | Location | Event 6 | -11/Scrapyard | Discovered new exit (range 16) 112 | -11/Scrapyard | Entered Materials 240 | -10/Materials | Discovered new exit (range 6) 309 | -10/Materials | Build established: Mutant 333 | -10/Materials | Core integrity fell below 50% 365 | -10/Materials | Lost 5 parts (1p2n2w) 406 | -10/Materials | Discovered new exit (range 12) 438 | -10/Materials | Entered another Materials area 438 | -9/Materials | Evolved 2 slots: Utility x2 883 | -9/Materials | Discovered new exit (range 8) 898 | -9/Materials | Entered Mines 926 | -9/Mines | Assembled infested the area 989 | -9/Mines | Core integrity fell below 50% 1003 | -9/Mines | Learned location of Storage (-8) 1009 | -9/Mines | Core integrity fell below 20% 1010 | -9/Mines | Self-destructed Last Messages --------------- Acquired 1 matter. Wheel destroyed. Lgt. Assault Rifle destroyed. Dropped Med. Storage Unit. Dropped Wheel. Dropped Imp. Ion Engine. Slammed into as-28777. Destabilizing: Core damaged (-8). Slammed into as-46352. Destabilizing: System corrupted (+2). Slammed into as-46352. Destabilizing: Core damaged (-8). A derelict emerges from the shadows: "Are any of them following you? I'm here trying to lose some heat after our second raid on Storage failed. Whatever you do stay away from that place, they've tightened security following our previous successful raids." World map updated: -8/Storage. GQ-AJR(g): "We scattered so the Unaware couldn't effectively use their advantage in numbers, and I suggest you do the same." GQ-AJR(g) slips back into the shadows. Map ----- +----------------------------------------------------+ | ???????????????????????????????????????? | | ???????????????????????????????????????? | | ???????????????????????????????????????? | | ???????????????????????????????????????? | | ???????????????????????????????????????? | | ???????????????????????????????????????? | | ???????????????????????????????????????? | | ???????????????????????????????????????? | | ???????????????????????????????????????? | | ???????????????????????????????????????? | | ???????????????????????????????????????? | | ???????????????????????????????????????? | | ???????????????????????????????????????? | | ????????????????????#####??????????????? | | ?????????????????#### #??????????????? | | ????????????????## #??????????????? | | ??????????????### #??????????????? | | ?????????????## ####??????????????? | | ????????????## ##?????????????????? | | ???????????## ##??????????????????? | | ???????????# ##???????????????????? | | ??????????## ######???????????????? | | ??????????# ### ## ######??????????? | | ??????????# #?##aaaa ## ##?????????? | | ??????????# #??## aa a ##????????? | | ??????????# %#???# @ ###??????? | | ###########!%#???# #??????? | | #???## #??????? | | % #????## ## #??????? | | ##########%###?????#### ##?###??????? | | ?????????#%#??????????######???????????? | | ?????????#%############????????####????? | | ?????????# !%* #?####??# ##???? | | ?????????############ ### ### #???? | | ????????????????????# ## #???? | | ??????????????####### #????? | | ?????????????## #?????? | | ????????????## #?????? | | ???????????## ! #?????? | | ?????????### = !!### #?????? | | ?????# *####??# ##?????? | | ????# #### ##??????###??????? | | ????????????## #????????????????? | | ?????????????###### #????????????????? | | ??????????????????## #????????????????? | | ???????????????????####????????????????? | | ???????????????????????????????????????? | | ???????????????????????????????????????? | | ???????????????????????????????????????? | | ???????????????????????????????????????? | +----------------------------------------------------+ Best States ------------- Heat Dissipation 28 Energy Generation 12 Energy Capacity 265 Matter Stores 300 Matter Capacity 300 Sight Range 16 Terrain Scan Density 10 Evasion (%) 50 Item Schematics ----------------- None Robot Schematics ------------------ None Fabricated ------------ Nothing Alien Tech Used ----------------- None Achievements -------------- None Challenges ------------ None Game ------ Seed TrapPulseClaymores Manual? 0 Play Time 00:13:54 Cumulative 34.9 hours Start 2022.12.14 @ 10:44:43 End 2022.12.14 @ 11:13:25 Sessions 1 Manual Loads 0 Difficulty Rogue Special Mode None Game No. 55 Rogue 55 Adventurer 0 Explorer 0 Win Type - Total 1 Types 1/0/0/0/0/0/0/0/0 Lore% 28 Gallery% 34 Achievement% 30 Wizard Run 0 Options --------- ASCII 0 Keyboard 0 Movement Arrows Keybinds 0 Fullscreen 2 Font 16/SmallcapsGlow Map View 76x50 Tactical HUD 0 Map Filters NONE Filters NONE Steam 1 RUN: 868b4e82-1bb1-440d-9323-1f2bb75eb088